Workbook

Sheet Inicio
A1: Seguimiento de la inversión | B1: Seguimiento de la inversión
A3: La plantilla Seguimiento de la inversión te permitirá hacer un seguimiento de tus inversiones y de la asignación de activos. El tipo de datos Cotizaciones de Excel guardará una cartera actualizada de los precios actuales y detalles de tus activos. Hay dos hojas de cálculo, Cartera y Asignación de activos, que se describen a continuación. Nota: El tipo de datos Cotizaciones de Excel es una característica exclusiva de suscripción de Office 365.
A5: Cartera | B5: Cartera
A6: Agrega tus inversiones, escribe símbolos bursátiles, nombres de la compañía o nombres del fondo sobre los ejemplos, o bien agrega más en líneas adicionales. Selecciona una categoría de activo y escribe el número de acciones.
A7: Haz clic en el botón Agregar columna para agregar columnas adicionales como Símbolo bursátil o Cambio.
A21: Para actualizar los datos, haz clic en cualquiera de las cotizaciones. En la pestaña Datos, en el grupo Consultas y conexiones, haz clic en Actualizar todo o presiona Ctrl+Alt+F5.
A26: Asignación de activos | B26: Asignación de activos
A28: Cambia Categorías y Mi objetivo para personalizar con los objetivos de tu cartera.
A29: Cuando la categoría de un activo supera el Umbral, las cantidades aparecerán resaltadas en amarillo.

Sheet Cartera
A1: Seguimiento de la inversión | B1: Seguimiento de la inversión
A3: Cartera | B3: Cartera
A5: Hay una tabla con las cotizaciones existentes en las celdas B5:I11 y una fila de totales en la fila 12. Escribe un nombre de compañía en las celdas B5:B11 y ve a Datos > Actualizar o presiona Ctrl+Alt+F5. | B5: Compañía | C5: Categoría | D5: Acciones | E5: Precio | F5: Cambio | G5: Cambio (%) | H5: % de cartera | I5: Valor
A6: Agrega tus inversiones, escribe símbolos bursátiles, nombres de la compañía o nombres del fondo sobre los ejemplos, o bien agrega más en líneas adicionales. Selecciona una categoría de activo y escribe el número de acciones. | C6: Acciones de EE. UU. | D6: 1,200 | E6: =_FV(TablaCartera[[#This Row],[Compañía]],"Price") -> $105.21 | F6: =_FV(TablaCartera[[#This Row],[Compañía]],"change") -> -$0.24 | G6: =_FV(TablaCartera[[#This Row],[Compañía]],"Change (%)",TRUE) -> -0.23% | H6: =IFERROR(I6/SUBTOTAL(109,TablaCartera[Valor]),"") -> 60% | I6: =D6 * E6 -> $126,252.00
A7: Haz clic en el botón Agregar columna para agregar columnas adicionales como Símbolo bursátil o Cambio. | C7: Bonos | D7: 1,300 | E7: =_FV(TablaCartera[[#This Row],[Compañía]],"Price") -> $10.46 | F7: =_FV(TablaCartera[[#This Row],[Compañía]],"change") -> $0.01 | G7: =_FV(TablaCartera[[#This Row],[Compañía]],"Change (%)",TRUE) -> 0.12% | H7: =IFERROR(I7/SUBTOTAL(109,TablaCartera[Valor]),"") -> 6% | I7: $13,598.00
A8: Para actualizar los datos, haz clic en cualquiera de las cotizaciones. En la pestaña Datos, en el grupo Consultas y conexiones, haz clic en Actualizar todo o presiona Ctrl+Alt+F5. | C8: Acciones internacionales | D8: 1,200 | E8: =_FV(TablaCartera[[#This Row],[Compañía]],"Price") -> $29.29 | F8: =_FV(TablaCartera[[#This Row],[Compañía]],"change") -> $0.07 | G8: =_FV(TablaCartera[[#This Row],[Compañía]],"Change (%)",TRUE) -> 0.24% | H8: =IFERROR(I8/SUBTOTAL(109,TablaCartera[Valor]),"") -> 17% | I8: $35,148.00
C9: Efectivo | D9: 10,000 | E9: =_FV(TablaCartera[[#This Row],[Compañía]],"Price") -> $1.00 | F9: =_FV(TablaCartera[[#This Row],[Compañía]],"change") -> 0 | G9: =_FV(TablaCartera[[#This Row],[Compañía]],"Change (%)",TRUE) -> 0.00% | H9: =IFERROR(I9/SUBTOTAL(109,TablaCartera[Valor]),"") -> 5% | I9: $10,000.00
C10: Inmuebles | D10: 125 | E10: =_FV(TablaCartera[[#This Row],[Compañía]],"Price") -> $116.63 | F10: =_FV(TablaCartera[[#This Row],[Compañía]],"change") -> -$0.25 | G10: =_FV(TablaCartera[[#This Row],[Compañía]],"Change (%)",TRUE) -> -0.21% | H10: =IFERROR(I10/SUBTOTAL(109,TablaCartera[Valor]),"") -> 7% | I10: $14,578.75
C11: Commodities | D11: 100 | E11: =_FV(TablaCartera[[#This Row],[Compañía]],"Price") -> $117.33 | F11: =_FV(TablaCartera[[#This Row],[Compañía]],"change") -> -$0.27 | G11: =_FV(TablaCartera[[#This Row],[Compañía]],"Change (%)",TRUE) -> -0.23% | H11: =IFERROR(I11/SUBTOTAL(109,TablaCartera[Valor]),"") -> 6% | I11: $11,733.00
B12: Total | I12: =IFERROR(SUBTOTAL(109,TablaCartera[Valor]), "") -> $211,309.75

Sheet Asignación de activos
A1: Seguimiento de la inversión | B1: Seguimiento de la inversión
A3: Asignación de activos | B3: Asignación de activos
A6: Hay un gráfico de barras que compara visualmente el porcentaje real de inversiones en cada categoría con los objetivos de la tabla a continuación, en las filas 19 a 25.
A19: Hay una tabla que calcula el porcentaje real de inversiones en cada categoría y lo compara con los objetivos. | B19: Categoría | C19: Mi objetivo | D19: Real | E19: Diferencia | F19: Umbral | G19: Valor
A20: La tabla completa automáticamente las categorías de la inversión con información de la tabla de la cartera en las celdas B19:G25. Escribe un objetivo para cada categoría de inversión en las celdas C20:C25 y ve a Datos > Actualizar o presiona Ctrl+Alt+F5. | B20: Acciones de EE. UU. | C20: 55% | D20: =IFERROR(G20/SUBTOTAL(109,TablaAsignaciónActivos[Valor]),"") -> 60% | E20: =D20 - C20 -> 4.7% | F20: =MIN(5%, $C20 * 25%) -> 5% | G20: =SUMIF(TablaCartera[Categoría], B20, TablaCartera[Valor]) -> $126,252.00
A21: Cuando la categoría de un activo supera el Umbral, las cantidades aparecerán resaltadas en amarillo. | B21: Acciones internacionales | C21: 20% | D21: =IFERROR(G21/SUBTOTAL(109,TablaAsignaciónActivos[Valor]),"") -> 17% | E21: -3.4% | F21: 5% | G21: =SUMIF(TablaCartera[Categoría], B21, TablaCartera[Valor]) -> $35,148.00
B22: Bonos | C22: 10% | D22: =IFERROR(G22/SUBTOTAL(109,TablaAsignaciónActivos[Valor]),"") -> 6% | E22: -3.6% | F22: 3% | G22: =SUMIF(TablaCartera[Categoría], B22, TablaCartera[Valor]) -> $13,598.00
B23: Efectivo | C23: 5% | D23: =IFERROR(G23/SUBTOTAL(109,TablaAsignaciónActivos[Valor]),"") -> 5% | E23: -0.3% | F23: 1% | G23: =SUMIF(TablaCartera[Categoría], B23, TablaCartera[Valor]) -> $10,000.00
B24: Inmuebles | C24: 5% | D24: =IFERROR(G24/SUBTOTAL(109,TablaAsignaciónActivos[Valor]),"") -> 7% | E24: 1.9% | F24: 1% | G24: =SUMIF(TablaCartera[Categoría], B24, TablaCartera[Valor]) -> $14,578.75
B25: Commodities | C25: 5% | D25: =IFERROR(G25/SUBTOTAL(109,TablaAsignaciónActivos[Valor]),"") -> 6% | E25: 0.6% | F25: 1% | G25: =SUMIF(TablaCartera[Categoría], B25, TablaCartera[Valor]) -> $11,733.00
